bitfinex-derivatives/quotes_SOLF0:USTF0_20260305
["timestamp","ask_amount","ask_price","bid_price","bid_amount"]
[1772749037595,1.95687563,88.991,88.956,5.34822127]
[1772749038399,10.112,88.993,88.956,5.34822127]
[1772749042000,3.56159405,88.99,88.956,5.34822127]
[1772749043503,4.20496672,88.988,88.956,5.34822127]
[1772749045103,4.20367651,89.009,88.956,5.34822127]
[1772749045894,4.20214201,89.027,88.978,5.34822127]
[1772749046199,4.20214201,89.038,88.991,5.34822127]
[1772749046404,4.20214201,89.038,88.969,20.23]
[1772749046405,3.56159405,89.05,89.011,10.11]
[1772749046601,3.56159405,89.05,89.012,5.34822127]
[1772749047397,4.25684365,89.052,89.012,5.34822127]
[1772749048108,3.56159405,89.05,89.012,5.34822127]
[1772749048506,4.25684365,89.052,89.014,15.45822127]
[1772749048809,4.25684365,89.052,89.015,5.20613051]
[1772749050409,4.25684365,89.052,89.017,10.109]
[1772749050603,4.25684365,89.052,89.017,15.27528852]
[1772749050907,4.25684365,89.052,89.018,5.16628852]
[1772749061920,3.5517244,89.05,89.018,5.16628852]
[1772749062119,4.25684365,89.052,89.018,5.16628852]
[1772749066130,4.25684365,89.052,89.01,3.5517244]
[1772749066131,4.25684365,89.052,89.022,5.16628852]
[1772749067026,3.5517244,89.06,89.022,5.16628852]
[1772749068128,3.5517244,89.07,89.024,5.16628852]
[1772749068524,3.5517244,89.07,89.035,10.107]
[1772749068720,3.5517244,89.07,89.035,15.27328852]
[1772749069022,10.103,89.077,89.035,15.27328852]
[1772749069023,10.103,89.077,89.036,5.16628852]
[1772749069227,10.103,89.077,89.038,5.16628852]
[1772749069428,4.16975679,89.079,89.038,5.16628852]
[1772749070518,9.04636813,89.11,89.011,5.16628852]
[1772749070519,4.14374648,89.069,89.011,5.16628852]
[1772749070723,4.14374648,89.059,89.011,5.16628852]
[1772749072424,4.14374648,89.059,89.029,10.108]
[1772749077037,4.10308855,89.049,89.006,5.16628852]
[1772749077835,3.5517244,89.05,89.006,5.16628852]
[1772749078539,7.65380074,89.06,89.023,10.109]
[1772749079541,4.09235784,89.059,89.023,10.109]
[1772749083246,4.08455829,89.049,89.015,10.11]
[1772749084241,3.5517244,89.06,89.016,5.6444486]
[1772749085139,4.08193832,89.091,89.037,5.6444486]
[1772749085442,12.28963432,89.111,89.037,5.6444486]
[1772749085443,4.08185752,89.079,89.037,5.6444486]
[1772749085741,3.5517244,89.08,89.053,10.105]
[1772749085936,7.63277292,89.08,89.037,5.6444486]
[1772749086139,3.87560511,89.079,89.037,5.6444486]
[1772749086841,3.87481519,89.11,89.037,5.6444486]
[1772749087043,3.87481519,89.121,89.08,3.5517244]
[1772749087245,3.87481519,89.121,89.081,5.6444486]
[1772749087443,3.5517244,89.12,89.083,5.6444486]
[1772749087839,3.87396309,89.109,89.069,5.6444486]
[1772749088141,3.5517244,89.11,89.069,5.6444486]
[1772749088343,3.5517244,89.12,89.069,5.6444486]
[1772749088641,3.5517244,89.12,89.071,15.7474486]
[1772749088942,3.5517244,89.13,89.081,5.6444486]
[1772749090542,3.5517244,89.13,89.089,5.6444486]
[1772749092645,3.5239465,89.135,89.089,5.6444486]
[1772749092646,3.5517244,89.12,89.089,5.6444486]
[1772749100851,6.57989037,89.11,89.075,5.6444486]
[1772749101051,3.5517244,89.1,89.075,5.6444486]
[1772749102048,3.5517244,89.1,89.076,10.103]
[1772749106257,3.5517244,89.1,89.066,10.104]
[1772749106859,3.5517244,89.1,89.069,10.103]
[1772749108156,3.5517244,89.1,89.07,5.6444486]
[1772749108558,3.5517244,89.1,89.072,5.6444486]
[1772749112468,3.5482762,89.1,89.072,5.6444486]
[1772749113666,3.5482762,89.1,89.05,3.5482762]
[1772749113667,6.57644217,89.11,89.074,5.38909589]
[1772749114062,3.5482762,89.11,89.074,5.38909589]
[1772749115367,3.5482762,89.11,89.08,10.102]
[1772749115865,3.5482762,89.11,89.08,15.49109589]
[1772749116566,3.5482762,89.11,89.081,5.38909589]
[1772749120560,3.05384946,89.121,89.087,5.38909589]
[1772749120771,3.5482762,89.14,89.087,5.38909589]
[1772749121162,6.57527941,89.14,89.087,5.38909589]
[1772749122362,3.02335167,89.139,89.105,10.099]
[1772749122863,10.097,89.128,89.081,5.38909589]
[1772749123069,3.5482762,89.12,89.081,5.38909589]
[1772749124471,3.5482762,89.12,89.089,10.101]
[1772749124668,2.7999521,89.127,89.089,10.101]
[1772749127569,3.5482762,89.12,89.089,10.101]
[1772749130670,3.5482762,89.12,89.089,15.49009589]
[1772749130861,2.7999521,89.127,89.089,15.49009589]
[1772749132166,2.70563565,89.111,89.073,10.103]
[1772749132368,8.54447711,89.135,89.081,5.38909589]
[1772749132369,6.25391185,89.13,89.081,5.38909589]
[1772749132568,2.70563565,89.129,89.081,5.38909589]
[1772749134574,2.70563565,89.129,89.085,5.38909589]
[1772749134766,17.67858338,89.145,89.085,5.38909589]
[1772749134971,3.5482762,89.15,89.101,5.38909589]
[1772749135168,3.5482762,89.15,89.11,5.38909589]
[1772749135471,6.53765618,89.15,89.11,5.38909589]
[1772749135673,6.53765618,89.15,89.114,10.098]
[1772749137176,3.5482762,89.14,89.114,10.098]
[1772749140177,3.5482762,89.14,89.11,5.38909589]
[1772749140378,3.5482762,89.13,89.11,5.38909589]
[1772749141078,3.5482762,89.13,89.089,5.23833456]
[1772749141468,3.5482762,89.13,89.097,10.1]
[1772749142476,3.5482762,89.12,89.089,5.23833456]
[1772749142676,3.5482762,89.11,89.088,10.101]
[1772749143276,3.5482762,89.11,89.079,5.23833456]
[1772749143480,3.5482762,89.1,89.051,5.23833456]
[1772749144175,3.5482762,89.11,89.051,5.23833456]
[1772749144479,3.5482762,89.11,89.075,5.23833456]
[1772749145376,3.5482762,89.11,89.077,10.103]
[1772749149783,3.5482762,89.11,89.077,15.34133456]
[1772749150886,3.5482762,89.11,89.079,10.102]
[1772749154585,3.5482762,89.12,89.086,5.23833456]
[1772749155886,3.5482762,89.13,89.086,5.23833456]
[1772749156094,3.5482762,89.14,89.086,5.23833456]
[1772749156492,3.5482762,89.14,89.096,5.23833456]
[1772749156694,2.30818885,89.144,89.096,5.23833456]
[1772749157394,2.30818885,89.144,89.101,5.23833456]
[1772749158386,3.5482762,89.14,89.104,5.23833456]
[1772749160405,3.5482762,89.14,89.108,5.23833456]
[1772749161199,3.5482762,89.14,89.112,15.33733456]
[1772749168908,3.5482762,89.14,89.113,5.39915731]
[1772749170810,3.5482762,89.13,89.113,5.39915731]
[1772749172708,3.54586727,89.13,89.113,5.39915731]
[1772749176616,3.54586727,89.14,89.113,5.39915731]
[1772749177915,3.54586727,89.14,89.08,3.54586727]
[1772749177916,3.54586727,89.13,89.102,5.43751889]
[1772749179711,3.54586727,89.13,89.103,15.53751889]
[1772749179907,3.54586727,89.13,89.104,5.43751889]
[1772749186823,3.54586727,89.12,89.094,5.43751889]
[1772749187615,3.54586727,89.11,89.094,5.43751889]
[1772749187819,3.54586727,89.12,89.094,5.43751889]
[1772749194424,2.01764412,89.119,89.084,5.43751889]
[1772749195440,2.01764412,89.119,89.085,10.102]
[1772749195833,2.01764412,89.119,89.085,15.53951889]
[1772749196032,2.01764412,89.119,89.086,5.43751889]
[1772749199338,1.9977565,89.109,89.078,10.102]
[1772749200041,1.9977565,89.109,89.08,15.61332416]
[1772749200637,1.9977565,89.109,89.081,5.51132416]
[1772749201335,3.54586727,89.09,89.051,5.51132416]
[1772749201536,3.54586727,89.08,89.051,5.51132416]
[1772749202242,3.54586727,89.07,89.051,5.51132416]
[1772749202539,3.54586727,89.07,89.024,20.218]
[1772749202540,2.05006203,89.074,89.039,5.51132416]
[1772749202732,3.54586727,89.06,89.039,5.51132416]
[1772749204341,3.54586727,89.05,89.026,5.51132416]
[1772749205238,3.54586727,89.05,89.027,10.108]
[1772749205542,3.54586727,89.06,89.028,5.51132416]
[1772749206538,3.54586727,89.06,89.03,5.51132416]
[1772749210041,3.54586727,89.04,89.005,5.51132416]
[1772749210344,3.54586727,89.04,88.971,5.51132416]
[1772749210345,3.54586727,89.02,88.971,5.51132416]
[1772749211143,3.54586727,89.01,88.979,5.51132416]
[1772749214338,2.24960297,89.019,88.979,5.51132416]
[1772749214539,2.24960297,89.019,88.983,10.113]
[1772749214734,3.54586727,89.01,88.983,10.113]
[1772749215942,3.54586727,89.01,88.983,15.62432416]
[1772749216149,3.54586727,89.01,88.983,5.51132416]
[1772749217447,2.24960297,89.019,88.983,5.51132416]
[1772749217641,2.24960297,89.019,88.985,5.51132416]
[1772749217843,3.54586727,89.01,88.961,5.51132416]
[1772749219436,3.54586727,89.01,88.978,5.51132416]
[1772749220147,3.54586727,89.01,88.981,10.114]
[1772749223550,2.24960297,89.019,88.987,5.51132416]
[1772749224146,3.54586727,89.01,88.987,5.51132416]
[1772749224346,3.54586727,89.01,88.982,10.113]
[1772749228452,20.206,89.077,88.975,10.114]
[1772749228453,3.54586727,89.0,88.975,10.114]
[1772749229547,3.54586727,89.01,88.982,5.25245629]
[1772749233560,3.54586727,89.02,88.987,5.29184048]
[1772749234261,3.54586727,89.02,88.988,10.113]
[1772749234462,3.55534899,89.02,88.988,10.113]
[1772749235162,3.55534899,89.02,88.992,10.112]
[1772749237863,3.55534899,89.02,88.994,15.40384048]
[1772749238166,3.55534899,89.02,88.995,5.29184048]
[1772749238961,3.55534899,89.03,88.995,5.29184048]
[1772749239367,3.55534899,89.03,88.997,10.112]
[1772749240063,3.55534899,89.03,88.997,15.40384048]
[1772749240867,3.55534899,89.02,88.998,5.29184048]
[1772749241063,3.55534899,89.03,88.998,5.29184048]
[1772749241267,3.55534899,89.03,88.999,15.40284048]
[1772749249677,5.23228619,89.009,88.897,27.97493564]
[1772749249874,5.23228619,89.009,88.906,157.46]
[1772749250068,3.55534899,89.0,88.94,3.55534899]
[1772749251268,3.55534899,89.01,88.96,3.55534899]
[1772749251672,3.55534899,89.01,88.961,5.29184048]
[1772749251872,15.34128619,89.019,88.961,5.29184048]
[1772749252170,3.55534899,89.01,88.961,5.29184048]
[1772749252377,3.55534899,89.01,88.979,10.114]
[1772749252680,5.23228619,89.037,88.981,4.93258962]
[1772749252876,3.55534899,89.03,88.981,4.93258962]
[1772749254481,13.66334899,89.03,88.985,4.98254649]
[1772749255377,13.66334899,89.03,88.989,15.10540815]
[1772749255680,3.55534899,89.03,88.99,4.99240815]
[1772749256378,3.55534899,89.03,88.991,15.09330408]
[1772749256579,3.55534899,89.03,88.992,4.98130408]
[1772749257274,3.55534899,89.03,88.993,10.112]
[1772749257672,5.23228619,89.029,88.993,10.112]
[1772749257981,13.88824152,89.057,88.93,62.0]
[1772749257982,5.23228619,89.019,88.96,3.55534899]
[1772749258281,3.55534899,89.01,88.979,5.00102962]
[1772749258684,3.55534899,89.0,88.961,5.00996945]
[1772749259477,3.55534899,89.0,88.976,10.114]
[1772749259680,5.23228619,89.009,88.976,10.114]
[1772749259874,5.23228619,89.009,88.967,10.115]
[1772749260077,5.23228619,89.009,88.968,5.0318343]
[1772749261485,5.23228619,89.009,88.95,3.55534899]
[1772749261486,5.23228619,89.009,88.971,5.04464201]
[1772749262484,3.55534899,89.0,88.971,5.04464201]
[1772749262885,5.23228619,89.009,88.971,5.04464201]
[1772749265088,5.23228619,89.009,88.974,10.114]
[1772749267982,5.23228619,89.009,88.971,5.04464201]
[1772749269593,13.95062539,89.009,88.974,10.114]
[1772749269787,5.23228619,89.009,88.974,10.114]
[1772749271486,3.55534899,89.0,88.974,10.114]
[1772749272592,5.23228619,89.009,88.974,10.114]
[1772749276291,5.23228619,89.009,88.971,5.04464201]
[1772749276692,3.55534899,89.0,88.971,5.04464201]
[1772749277487,3.55534899,89.0,88.972,15.30281801]
[1772749278493,3.55534899,89.0,88.975,10.114]
[1772749279998,3.55534899,89.02,88.98,5.22939929]
[1772749281397,3.55534899,89.02,88.986,5.20721918]
[1772749282599,3.55534899,89.01,88.986,5.20721918]
[1772749289505,3.55534899,89.02,88.989,5.23295346]
[1772749289801,3.55534899,89.03,88.989,5.23295346]
[1772749291406,3.55534899,89.03,88.999,10.111]
[1772749291605,3.55534899,89.03,89.0,5.29382033]
[1772749291907,3.55534899,89.04,89.0,5.29382033]
[1772749292508,3.55534899,89.03,89.0,5.29382033]
[1772749293507,3.55534899,89.03,89.008,10.11]
[1772749294504,3.55372526,89.03,89.008,10.11]
[1772749295303,3.55372526,89.04,89.008,10.11]
[1772749295507,5.77450391,89.039,89.001,15.37866062]
[1772749295907,3.55372526,89.03,89.001,15.37866062]
[1772749296703,3.55372526,89.03,89.002,5.2704841]
[1772749297610,3.55372526,89.03,89.005,10.111]
[1772749297810,3.55372526,89.03,89.005,15.39342596]
[1772749301312,5.77450391,89.039,89.013,10.11]
[1772749301509,5.77450391,89.039,89.006,5.30710224]
[1772749302513,5.77450391,89.039,89.006,15.41810224]
[1772749306918,3.55372526,89.03,89.006,15.41810224]
[1772749307320,3.55372526,89.03,89.007,5.34903372]
[1772749307619,3.55372526,89.03,89.01,10.11]
[1772749308522,3.55372526,89.04,89.015,5.32862302]
[1772749309016,0.00072526,89.04,89.023,10.109]
[1772749309325,0.00072526,89.04,88.954,157.376]
[1772749309326,3.55372526,89.03,88.991,5.3336875]
[1772749309522,5.77450391,89.039,88.991,5.3336875]
[1772749309715,3.55372526,89.03,88.991,5.3336875]
[1772749310421,3.55372526,89.03,89.002,10.111]
[1772749319721,3.55372526,89.03,89.006,10.111]
[1772749319927,5.77450391,89.039,89.007,5.63440741]
[1772749321525,5.77450391,89.039,89.011,10.11]
[1772749335839,3.55372526,89.02,88.997,5.70097875]
[1772749336241,5.37183181,89.029,89.0,10.111]
[1772749337638,5.37183181,89.029,88.98,3.55372526]
[1772749337639,12.28040155,89.03,89.003,5.70774819]
[1772749337843,3.55372526,89.03,89.003,5.70774819]
[1772749339439,3.55372526,89.02,89.003,5.70774819]
[1772749345851,3.55372526,89.02,89.004,10.111]
[1772749348654,3.55372526,89.02,89.003,5.70774819]
[1772749348655,0.00072526,89.02,89.006,15.79590369]
[1772749348856,3.55372526,89.03,89.007,5.60245592]
[1772749350146,5.86019432,89.045,89.014,5.69295931]
[1772749350147,8.72667629,89.043,89.014,5.69295931]
[1772749350351,3.55372526,89.04,89.014,5.69295931]
[1772749351448,3.55372526,89.04,89.017,10.109]
[1772749356560,3.55359117,89.04,89.017,10.109]
[1772749358951,3.55359117,89.04,88.951,28.05518301]
[1772749358952,5.73400311,89.029,88.987,5.82860516]
[1772749359153,0.00059117,89.01,88.987,5.82860516]
[1772749360251,3.55359117,89.02,88.999,10.111]
[1772749360855,8.72667629,89.037,89.014,5.742704]
[1772749361060,3.55359117,89.04,89.014,5.742704]
[1772749362563,3.55359117,89.04,89.015,10.11]
[1772749363664,0.00059117,89.04,89.021,10.109]
[1772749364663,0.00059117,89.04,89.014,5.742704]
[1772749365464,0.00059117,89.04,89.021,10.109]
[1772749365763,0.00059117,89.04,89.014,5.742704]
[1772749366368,0.00059117,89.04,89.021,10.109]
[1772749366666,0.00059117,89.04,89.014,5.742704]
[1772749367566,0.00059117,89.04,89.021,10.109]
[1772749367758,0.00059117,89.04,89.014,5.742704]
[1772749368466,0.00059117,89.04,89.021,10.109]
[1772749368664,0.00059117,89.04,89.014,5.742704]
[1772749369468,0.00059117,89.04,89.021,10.109]
[1772749369669,0.00059117,89.04,89.014,5.742704]
[1772749370467,0.00059117,89.04,89.021,10.109]
[1772749370766,0.00059117,89.04,89.014,5.742704]
[1772749371159,3.55359117,89.03,89.014,5.742704]
[1772749371364,0.00059117,89.03,89.008,10.11]
[1772749371763,0.00059117,89.03,89.008,15.82394124]
[1772749372062,0.00059117,89.03,89.011,10.11]
[1772749373370,0.00059117,89.04,89.014,5.71530667]
[1772749374368,0.00059117,89.04,89.018,10.109]
[1772749375572,0.00059117,89.03,89.018,10.109]
[1772749378474,3.55359117,89.04,89.018,10.109]
[1772749378975,3.55359117,89.04,89.015,10.11]
[1772749379174,3.55359117,89.04,89.015,15.81214316]
[1772749381181,3.55359117,89.04,89.017,10.109]
[1772749383489,3.55359117,89.04,89.016,5.68756604]
[1772749387181,3.55359117,89.04,89.017,10.109]
[1772749387597,3.55359117,89.04,89.017,15.75459046]
[1772749389586,9.28759428,89.05,89.017,15.75459046]
[1772749389982,3.55359117,89.04,89.017,15.75459046]
[1772749395395,3.55359117,89.04,89.018,5.59069292]
[1772749395591,5.73400311,89.05,89.018,5.59069292]
[1772749395795,14.4606794,89.05,89.018,5.59069292]
[1772749395989,5.73400311,89.05,89.018,5.59069292]
[1772749396187,10.43982013,89.075,89.035,5.58633211]
[1772749396498,5.43396223,89.067,88.975,5.60222439]
[1772749396697,5.43396223,89.063,88.975,5.60222439]
[1772749397495,5.43396223,89.057,89.011,5.59810698]
[1772749398400,5.43396223,89.057,89.014,10.11]
[1772749398601,5.43396223,89.057,89.015,5.69772473]
[1772749399700,10.105,89.055,89.015,5.69772473]
[1772749399899,5.43396223,89.054,89.015,5.69772473]
[1772749403896,5.43396223,89.054,89.005,5.69772473]
[1772749404504,5.43396223,89.054,89.007,5.69772473]
[1772749404505,5.43396223,89.053,89.007,5.69772473]
[1772749405303,5.43396223,89.044,88.95,5.69772473]
[1772749405502,5.43396223,89.039,88.95,5.69772473]
[1772749406800,5.43396223,89.039,88.992,5.69772473]
[1772749408305,5.43396223,89.037,88.992,5.69772473]
[1772749408506,5.43396223,89.036,88.997,5.69772473]
[1772749409202,5.43396223,89.036,88.954,20.234]
[1772749409203,5.43396223,89.036,89.0,5.4966505]
[1772749410508,5.43396223,89.036,89.001,15.46104468]
[1772749410710,5.43396223,89.036,89.002,5.35004468]
[1772749411907,8.72271254,89.046,89.006,5.35004468]
[1772749412107,8.72271254,89.047,89.006,5.35004468]
[1772749412313,14.12254793,89.05,89.006,5.35004468]
[1772749412509,5.39983539,89.05,89.006,5.35004468]
[1772749412908,14.12254793,89.05,89.006,5.35004468]
[1772749413105,5.39983539,89.05,89.006,5.35004468]
[1772749413409,5.39983539,89.05,89.01,10.11]
[1772749413713,5.39983539,89.05,89.011,5.35004468]
[1772749414012,14.12254793,89.049,89.011,5.35004468]
[1772749414209,5.39983539,89.049,89.011,5.35004468]
[1772749414608,5.39983539,89.049,89.013,10.11]
[1772749414810,14.12254793,89.049,89.013,15.46004468]
[1772749415012,8.72271254,89.052,89.014,5.35004468]
[1772749415308,20.95881221,89.093,89.014,5.35004468]
[1772749415309,5.39983539,89.066,89.014,5.35004468]
[1772749415510,5.39983539,89.064,89.03,15.45804468]
[1772749415709,14.12254793,89.064,89.03,15.45804468]
[1772749416014,5.39983539,89.064,89.03,15.45804468]
[1772749417013,14.12254793,89.064,89.03,15.45804468]
[1772749417208,5.39983539,89.064,89.03,15.45804468]
[1772749424912,10.104,89.064,89.03,5.35004468]
[1772749425118,5.39983539,89.063,89.016,5.35004468]
[1772749426518,5.39983539,89.059,89.016,5.35004468]
[1772749427524,5.39983539,89.059,89.018,5.35004468]
[1772749428428,5.39983539,89.059,89.022,5.35004468]
[1772749431225,5.39983539,89.059,89.025,5.35004468]
[1772749431927,5.39983539,89.059,89.027,5.35004468]
[1772749442938,13.9924207,89.091,88.989,20.226]
[1772749442939,5.73990466,89.054,89.018,5.68055887]
[1772749444538,5.73990466,89.054,89.02,10.109]
[1772749444737,5.73990466,89.054,89.02,15.78955887]
[1772749445435,5.73990466,89.054,89.021,5.68055887]
[1772749447142,10.105,89.058,89.024,5.68055887]
[1772749449040,8.7349151,89.059,89.03,5.68055887]
[1772749449241,8.7349151,89.066,89.03,5.68055887]
[1772749449441,5.73990466,89.065,89.03,5.68055887]
[1772749450540,5.73990466,89.061,89.03,5.68055887]
[1772749450740,5.73990466,89.061,89.018,10.109]
[1772749451036,5.73990466,89.061,89.018,15.78955887]
[1772749451636,5.73990466,89.061,89.019,5.68055887]
[1772749452452,5.73990466,89.057,89.019,5.68055887]
[1772749453145,5.73990466,89.053,89.019,5.68055887]
[1772749455343,5.73990466,89.053,89.021,5.68055887]
[1772749455643,5.73990466,89.053,89.008,5.68055887]
[1772749455848,17.79693815,89.059,89.019,5.68055887]
[1772749456047,8.7349151,89.058,89.019,5.68055887]
[1772749456248,5.73990466,89.059,89.019,5.68055887]
[1772749456645,5.73990466,89.058,89.019,5.68055887]
[1772749457549,5.73990466,89.054,89.021,10.109]
[1772749458946,5.73990466,89.051,89.019,5.68055887]
[1772749459146,8.7349151,89.05,89.019,5.68055887]
[1772749459450,8.7349151,89.049,89.019,5.68055887]
[1772749461151,5.73990466,89.05,89.019,5.68055887]
[1772749461350,14.47481976,89.05,89.019,5.68055887]
[1772749461552,5.73990466,89.05,89.019,5.68055887]
[1772749462447,5.73990466,89.05,89.02,10.109]
[1772749465351,5.73990466,89.05,89.021,5.68055887]
[1772749472760,5.73990466,89.05,89.022,15.50095117]
[1772749473759,8.7349151,89.049,89.022,15.50095117]
[1772749473960,5.73990466,89.05,89.022,15.50095117]
[1772749483572,5.73990466,89.05,89.022,5.39195117]
[1772749485871,8.7349151,89.057,89.022,5.39195117]
[1772749486173,5.38408548,89.067,89.022,5.39195117]
[1772749486368,9.05961941,89.07,89.022,5.39195117]
[1772749486369,14.11900058,89.066,89.022,5.39195117]
[1772749486573,8.7349151,89.065,89.022,5.39195117]
[1772749486775,8.7349151,89.064,89.022,5.39195117]
[1772749487075,8.7349151,89.063,89.022,5.39195117]
[1772749487370,8.7349151,89.062,89.032,10.108]
[1772749487675,17.79453451,89.065,89.032,10.108]
[1772749487872,8.7349151,89.064,89.032,10.108]
[1772749488067,8.7349151,89.063,89.032,10.108]
[1772749488269,8.7349151,89.062,89.032,10.108]
[1772749488472,8.7349151,89.064,89.032,10.108]
[1772749488771,8.7349151,89.063,89.032,10.108]
[1772749488973,5.38408548,89.066,89.032,10.108]
[1772749488974,8.7349151,89.062,89.032,10.108]
[1772749489274,8.7349151,89.065,89.032,10.108]
[1772749489468,8.7349151,89.064,89.032,10.108]
[1772749489670,8.7349151,89.063,89.032,10.108]
[1772749489865,8.7349151,89.065,89.032,10.108]
[1772749490069,8.7349151,89.064,89.032,10.108]
[1772749490277,8.7349151,89.063,89.032,10.108]
[1772749490476,8.7349151,89.065,89.032,10.108]
[1772749490677,8.7349151,89.064,89.032,10.108]
[1772749490879,8.7349151,89.063,89.032,10.108]
[1772749491073,8.7349151,89.065,89.037,5.39195117]
[1772749491274,5.38408548,89.063,89.005,5.39195117]
[1772749492379,5.38408548,89.063,89.028,10.108]
[1772749493580,5.38408548,89.063,89.029,5.39195117]
[1772749494078,10.49560354,89.089,89.033,5.39195117]
[1772749494280,8.74107063,89.088,89.033,5.39195117]
[1772749494478,8.74107063,89.087,89.033,5.39195117]
[1772749494678,9.05373585,89.092,88.978,157.332]
[1772749494679,8.74107063,89.091,89.056,5.39195117]
[1772749494878,8.74107063,89.09,89.056,5.39195117]
[1772749495083,14.12515611,89.094,89.056,5.39195117]
[1772749495280,14.12515611,89.093,89.056,5.39195117]
[1772749495480,14.12515611,89.092,89.056,5.39195117]
[1772749495676,8.74107063,89.091,89.056,5.39195117]
[1772749495880,11.67360765,89.125,89.056,5.39195117]
[1772749496479,11.67360765,89.125,89.01,157.277]
[1772749496480,11.67859353,89.14,89.039,157.226]
[1772749496681,11.67859353,89.14,89.05,20.96465606]
[1772749497085,11.67859353,89.138,89.061,20.209]
[1772749498986,10.096,89.137,89.091,10.101]
[1772749499190,11.65265966,89.136,89.091,10.101]
[1772749500390,11.65265966,89.136,89.1,10.1]
[1772749500979,11.65265966,89.136,89.092,10.101]
[1772749501383,11.65265966,89.136,89.038,20.96465606]
[1772749501384,11.65314819,89.135,89.026,20.96465606]
[1772749501581,11.65314819,89.135,89.022,20.96465606]
[1772749501786,11.65314819,89.135,89.077,10.103]
[1772749502385,11.64504494,89.118,89.02,20.96465606]
[1772749503286,11.64504494,89.118,89.018,20.96465606]
[1772749503682,11.64504494,89.118,89.019,20.96465606]
[1772749504083,11.64504494,89.118,89.017,20.96465606]
[1772749504282,11.64504494,89.118,89.02,20.96465606]
[1772749505289,11.64504494,89.118,89.019,20.96465606]
[1772749505592,11.64504494,89.118,89.074,10.103]
[1772749509590,11.64504494,89.118,89.081,10.102]
[1772749513191,11.64504494,89.118,89.089,10.101]
[1772749513390,1.95324011,89.169,89.089,10.101]
[1772749513391,11.64439337,89.129,89.089,10.101]
[1772749517790,11.64439337,89.129,89.077,10.103]
[1772749518190,11.61309645,89.11,89.023,20.218]
[1772749518390,11.61309645,89.11,88.971,34.60520405]
[1772749518391,11.61309645,89.11,88.985,157.321]
[1772749518596,11.61309645,89.11,88.987,157.318]
[1772749519297,11.61059399,89.096,89.051,10.106]
[1772749532606,10.101,89.094,89.051,10.106]
[1772749532806,11.50030498,89.093,89.051,10.106]
[1772749536212,10.101,89.092,89.051,10.106]
[1772749536411,11.4983117,89.091,89.007,20.221]
[1772749537513,11.50037293,89.081,89.038,10.107]
[1772749537715,11.50037293,89.081,89.007,20.221]
[1772749538611,11.50037293,89.081,89.044,10.106]
[1772749539319,11.50598554,89.08,89.037,10.107]
[1772749539514,11.50598554,89.08,89.007,20.221]
[1772749540410,11.49805642,89.078,89.035,10.107]
[1772749555328,10.103,89.077,89.035,10.107]
[1772749555536,11.48542174,89.076,89.04,10.107]
[1772749555919,10.103,89.075,89.007,20.221]
[1772749556220,11.48542174,89.074,89.007,20.221]
[1772749556423,11.48542174,89.074,89.038,10.107]
[1772749557023,11.48542174,89.074,89.031,10.108]
[1772749557620,10.103,89.072,89.024,10.109]
[1772749557821,11.48852081,89.071,89.024,10.109]
[1772749559526,20.198,89.109,89.024,10.109]
[1772749559527,11.49979391,89.069,89.024,10.109]
[1772749562028,11.49979391,89.069,88.994,20.96465606]
[1772749562834,11.49979391,89.069,89.002,20.223]
[1772749563031,11.49979391,89.069,88.994,20.96465606]
[1772749563232,11.49979391,89.069,88.996,20.96465606]
[1772749563831,11.49979391,89.069,88.995,20.96465606]
[1772749564027,11.49979391,89.069,88.956,157.371]
[1772749564028,11.49979391,89.069,88.996,20.96465606]
[1772749564436,11.49979391,89.069,89.024,10.109]
[1772749565436,11.50112281,89.065,89.024,10.109]
[1772749568535,11.50112281,89.065,88.991,20.96465606]
[1772749569637,11.50112281,89.065,89.023,10.109]
[1772749571834,10.104,89.064,89.023,10.109]
[1772749572140,11.50112281,89.065,89.023,10.109]
[1772749573441,11.50112281,89.065,89.009,10.11]
[1772749574538,11.54916385,89.057,89.009,10.11]
[1772749574736,11.54916385,89.056,89.009,10.11]
[1772749574936,11.54916385,89.055,89.009,10.11]
[1772749575437,11.54908231,89.053,88.962,20.96465606]
[1772749575634,11.54908231,89.051,88.947,20.96465606]
[1772749576140,11.54908231,89.025,88.971,10.115]
[1772749576337,11.54908231,89.025,88.947,20.235]
[1772749577242,11.54908231,89.025,88.979,10.114]
[1772749578143,11.57270448,89.023,88.94,20.96465606]
[1772749579139,11.57270448,89.023,88.938,20.96465606]
[1772749579343,34.1994207,89.072,88.938,20.96465606]
[1772749579344,11.56447169,89.019,88.938,20.96465606]
[1772749579742,11.56447169,89.019,88.972,10.114]